Cogmind - Beta 16.1 @@@ ROGUE MODE // 2026.04.29 @ 14:47:23 Player: Back to the Scrapyard Result: Destroyed by BX-LWN(R) with Subdweller Laser Performance ------------- Evolutions (0) 0 Regions Visited (3) 600 Robots Destroyed (16) 80 Value Destroyed (480) 480 Prototype IDs (0) 0 Alien Tech Used (0) 0 Bonus (0) 0 TOTAL SCORE: 1160 Bonus ------- None Cogmind --------- Core Integrity 0/250 Matter 293/300 Energy 60/100 System Corruption 3% Temperature Warm (130) Movement Treading (160) Location -10/Subcaves Parts ------- > --- POWER (1) -------- (None) > --- PROPULSION (2) --- Light Treads Light Treads > --- UTILITY (2) ------ Large Storage Unit > --- WEAPON (2) ------- Particle Gun Particle Gun > --- INVENTORY (15) --- Ion Engine Light Ion Engine Light Treads Aluminum Leg Aluminum Leg Aluminum Leg Improved Terrain Scanner Seismic Detector Light Armor Plating Medium Laser Battle Rifle Barrage Gun Battle Cannon Grenade Launcher Mining Laser Peak State ------------ > --- POWER ------------ Subdweller Power Source > --- PROPULSION ------- Light Treads Light Treads > --- UTILITY ---------- Improved Heat Sink Large Storage Unit > --- WEAPON ----------- Particle Gun Particle Gun > --- INVENTORY -------- Ion Engine Light Ion Engine Light Treads Aluminum Leg Aluminum Leg Aluminum Leg Improved Terrain Scanner Seismic Detector Light Armor Plating Medium Laser Battle Rifle Barrage Gun Battle Cannon Grenade Launcher Mining Laser [Rating: 14] Favorites ----------- Power Light Ion Engine Engine Light Ion Engine Power Core Light Nuclear Core Propulsion Light Treads Treads Light Treads Leg Aluminum Leg Utility Large Storage Unit Device Improved Heat Sink Storage Large Storage Unit Weapon Particle Gun Energy Gun Particle Gun Ballistic Gun Light Assault Rifle Build | -11 -10 -10 -10 ------- Run | Yrd Mat Min Sub Slots Evolved . | . . . . Power . | . . . . Propulsion . | . . . . Utility . | . . . . Weapon . | . . . . Parts Attached 19 | 9 8 1 1 Power 4 | 1 2 . 1 Engine 3 | 1 1 . 1 Core 1 | . 1 . . Reactor . | . . . . Propulsion 5 | 3 2 . . Treads 3 | 1 2 . . Leg 2 | 2 . . . Wheel . | . . . . Hover . | . . . . Flight . | . . . . Utility 4 | 2 2 . . Device 2 | 1 1 . . Storage 2 | 1 1 . . Processor . | . . . . Hackware . | . . . . Protection . | . . . . Artifact . | . . . . Weapon 6 | 3 2 1 . Energy Gun 5 | 2 2 1 . Energy Cannon . | . . . . Ballistic Gun 1 | 1 . . . Ballistic Cannon . | . . . . Launcher . | . . . . Special Weapon . | . . . . Impact Weapon . | . . . . Slashing Weapon . | . . . . Piercing Weapon . | . . . . Special Melee Weapon . | . . . . Unidentified Prototypes . | . . . . Parts Lost 4 | . 2 . 2 Power 2 | . 1 . 1 Propulsion 1 | . 1 . . Utility 1 | . . . 1 Weapon . | . . . . Highest Loss Streak 2 | . 1 . 2 To Critical Strikes . | . . . . Average Backups 12 | 4 12 15 14 Power 2 | . 2 2 2 Propulsion 3 | 1 3 4 4 Utility 2 | . 2 3 3 Weapon 4 | 1 4 6 5 Tool/Special . | . . . . Unused Backups 13 | . . . 13 Power 1 | . . . 1 Propulsion 3 | . . . 3 Utility 2 | . . . 2 Weapon 7 | . . . 7 Tool/Special . | . . . . Average Slot Usage (%) 97 | . 97 100 93 Engine 10 | . 9 14 12 Core 3 | . 3 . . Treads 18 | . 16 28 28 Leg 8 | . 9 . . Device 13 | . 14 14 10 Storage 14 | . 14 14 14 Energy Gun 25 | . 25 28 28 Ballistic Gun 1 | . 2 . . Peak Build Rating 14 | 7 11 12 14 Average Rating 10 | 4 10 11 11 On Entrance 7 | . 7 11 12 Avg Prop Armor Cover (%) . | . . . . Naked Turns . | . . . . Heaviest Build 31 | 12 31 30 30 Greatest Support 40 | 20 40 40 40 Greatest Overweight (x) 2 | . 2 . . Average Overweight (x) . | . . . . Largest Inventory Capacity 15 | 8 15 15 15 Average Capacity 14 | 6 14 15 15 Most Carried 15 | 7 15 15 15 Average Carried 12 | 4 12 15 14 Final Capacity 15 | 8 15 15 15 Final Carried 15 | 6 15 15 15 Class Distribution -------------------- 95% | Mutant 4% | Scavenger-Mutant Dominant Class ---------------- Mutant | -10/Materials Mutant | -10/Mines Scavenger-Mutant | -10/Subcaves Resources | -11 -10 -10 -10 ----------- Run | Yrd Mat Min Sub Matter Collected 493 | 290 185 8 10 Remotely . | . . . . Salvage Created 539 | 19 520 . . Parts 33 | 5 28 . . Haulers Intercepted 1 | . 1 . . Recyclers Shooed 1 | . 1 . . Parts Field Recycled . | . . . . Retrieved Matter . | . . . . Parts Self-Destructed . | . . . . Prevented . | . . . . Parts Restored . | . . . . Kills | -11 -10 -10 -10 ------- Run | Yrd Mat Min Sub Combat Hostiles Destroyed 11 | . 11 . . Guns 10 | . 10 . . Classes Destroyed 5 | 1 4 . . Tunneler 1 | 1 . . . Hauler 1 | . 1 . . Operator 2 | . 2 . . Watcher 1 | . 1 . . Grunt 11 | . 11 . . Best Kill Streak 2 | 1 2 . . Combat Bots Only 2 | . 2 . . Max Kills in Single Turn 1 | 1 1 . . Gunslinging . | . . . . Exploded . | . . . . Melee . | . . . . Uniques/NPCs Destroyed . | . . . . Combat | -11 -10 -10 -10 -------- Run | Yrd Mat Min Sub Hostile Shots Fired 102 | . 64 . 38 Missed 17 | . 13 . 4 Hits 85 | . 51 . 34 Projectile 85 | . 51 . 34 Critical Strikes 1 | . 1 . . Damage Taken 1342 | . 636 . 706 Core 256 | . 89 . 167 Absorbed by Shields . | . . . . Regen/Repaired (Parts) 165 | . 165 . . Core Remaining (%) 100 | 100 . . . Volleys Fired 90 | 1 64 . 25 Largest 2 | 2 2 . 2 Hottest 130 | 90 115 . 130 Shots Fired 176 | 2 123 . 51 Gun 176 | 2 123 . 51 Cannon . | . . . . Launcher . | . . . . Special . | . . . . Kinetic 23 | . 23 . . Thermal 153 | 2 100 . 51 Explosive . | . . . . Electromagnetic . | . . . . Robot Hit Streak 41 | 1 11 . 41 Robot Miss Streak 6 | 1 6 . 1 Penetration Max . | . . . . Secondary Targets . | . . . . Shots Hit Robots 124 | 1 76 . 47 Core Hits 31 | 1 30 . . Critical Kills . | . . . . Critical Parts Destroyed . | . . . . Critical Strikes 2 | . 2 . . Burn 2 | . 2 . . Melee Attacks . | . . . . Impact . | . . . . Slashing . | . . . . Piercing . | . . . . Sneak Attacks . | . . . . Combat Hostiles . | . . . . Follow-up Attacks . | . . . . Damage Inflicted 1144 | 10 1009 . 125 Guns 1129 | 10 994 . 125 Cannons . | . . . . Explosions . | . . . . Melee . | . . . . Ramming 15 | . 15 . . Kinetic 163 | . 163 . . Thermal 966 | 10 831 . 125 Explosive . | . . . . Electromagnetic . | . . . . Impact . | . . . . Slashing . | . . . . Piercing . | . . . . Highest Corruption 3 | . 3 3 3 Average Corruption 2 | . 2 3 3 Corruption Purged . | . . . . Corruption Blocked . | . . . . Effects 30 | . 26 2 2 Message Errors 6 | . 6 . . Matter Fused 8 | . 6 1 1 Heat Flow Errors 5 | . 5 . . Energy Discharges 3 | . 2 1 . Parts Fused 1 | . 1 . . Data Loss (minor) 1 | . 1 . . Data Loss (major) 2 | . 2 . . Misfires 3 | . 2 . 1 Weapon Failures 1 | . 1 . . Overload Shots . | . . . . Overflow Damage . | . . . . Projectiles . | . . . . Explosions . | . . . . Melee . | . . . . Knockbacks . | . . . . Impact . | . . . . Kinetic . | . . . . Secondary . | . . . . Self-Inflicted Damage . | . . . . Shots . | . . . . Rammed 2 | . 2 . . Targets Rammed 2 | . 2 . . Kicked . | . . . . Crushed . | . . . . Highest Temperature 297 | 30 297 . 126 Average Temperature 85 | 18 86 . 88 Received Heat Transfer 585 | . 381 . 204 Siege Activations . | . . . . Martial Activations . | . . . . Shielding Activations . | . . . . Robots Disrupted . | . . . . Combat Hostiles . | . . . . Robots Corrupted . | . . . . Combat Hostiles . | . . . . Parts Fried . | . . . . Impact Corruptions . | . . . . Robots Melted 1 | . 1 . . Combat Hostiles 1 | . 1 . . Parts Melted 5 | . 5 . . Heat Transferred 2543 | 25 2222 . 296 Parts Sabotaged . | . . . . Parts Stolen . | . . . . Parts Stripped . | . . . . Power Chain Reactions . | . . . . Alert | -11 -10 -10 -10 ------- Run | Yrd Mat Min Sub Maximum Alert Level . | . . . . Low Security (%) 100 | 100 100 100 . Level 1 . | . . . . Level 2 . | . . . . Level 3 . | . . . . Level 4 . | . . . . Level 5 . | . . . . High Security . | . . . . Max Security . | . . . . Peak Influence 78 | 5 78 9 . Initial 9 | . . 9 . Average 21 | . 24 1 . Influence Increases 371 | 5 366 . . Destroy 0b10 Robot/C 220 | . 220 . . Destroy 0b10 Robot/NC 25 | 5 20 . . Destroy Leader 64 | . 64 . . Successful Hack 16 | . 16 . . Disable Machine 15 | . 15 . . Destroy Structure 1 | . 1 . . Partial Spotted 30 | . 30 . . Influence Decreases 371 | 5 341 25 . Entered New Map 16 | . . 16 . Time Decay 335 | 5 321 9 . Lost Part 20 | . 20 . . Squads Dispatched 3 | . 3 . . Investigation 1 | . 1 . . Extermination . | . . . . Reinforcement 2 | . 2 . . Assault . | . . . . Garrison . | . . . . Intercept . | . . . . Searches Triggered . | . . . . Construction Impeded . | . . . . Haulers Reinforced . | . . . . Active Scanning Responses . | . . . . Cargo Convoy Interrupts . | . . . . Stealth | -11 -10 -10 -10 --------- Run | Yrd Mat Min Sub Distress Signals . | . . . . Communications Jammed . | . . . . Distress Signals . | . . . . Times Spotted 23 | . 22 . 1 Peak Tracking Total 2 | . 2 . 1 Tactical Retreats . | . . . . Traps | -11 -10 -10 -10 ------- Run | Yrd Mat Min Sub Traps Triggered 3 | . 3 . . Indirectly . | . . . . Trap Hack Attempts . | . . . . Triggered . | . . . . Disarmed . | . . . . Reprogrammed . | . . . . Reused . | . . . . Traps Extracted . | . . . . Installed . | . . . . Triggered . | . . . . Machines | -11 -10 -10 -10 ---------- Run | Yrd Mat Min Sub Machines Disabled 1 | . 1 . . Max in Single Turn 1 | . 1 . . Machines Repaired . | . . . . Machines Dismantled . | . . . . Machines Sabotaged . | . . . . Overloaded Fab Kills . | . . . . Hacking | -11 -10 -10 -10 --------- Run | Yrd Mat Min Sub Machines Accessed 7 | . 7 . . Terminals 6 | . 6 . . Fabricators . | . . . . Repair Stations 1 | . 1 . . Recycling Units . | . . . . Scanalyzers . | . . . . Garrison Access . | . . . . Total Hacks 19 | . 19 . . Successful 13 | . 13 . . Failed 5 | . 5 . . Catastrophic . | . . . . Database Lockouts 1 | . 1 . . Manual 14 | . 14 . . Terminals 13 | . 13 . . Fabricators . | . . . . Repair Stations 6 | . 6 . . Recycling Units . | . . . . Scanalyzers . | . . . . Garrison Access . | . . . . Terminal Hacks 1 | . 1 . . Robot Analysis 1 | . 1 . . Fabricator Hacks . | . . . . Repair Station Hacks 5 | . 5 . . Scan Component 3 | . 3 . . Repair 2 | . 2 . . Recycling Unit Hacks . | . . . . Scanalyzer . | . . . . Garrison Access Hacks . | . . . . Unauthorized Hacks 7 | . 7 . . Terminals 7 | . 7 . . Botnet 1 | . 1 . . Skim 6 | . 6 . . Fabricators . | . . . . Repair Stations . | . . . . Recycling Units . | . . . . Scanalyzers . | . . . . Garrison Access . | . . . . Data Cores Recovered . | . . . . Used . | . . . . Hacking Detections 4 | . 4 . . Full Trace Events 2 | . 2 . . Feedback Events . | . . . . Feedback Blocked . | . . . . Robot Schematics Acquired . | . . . . Robots Built . | . . . . Authchips . | . . . . Time . | . . . . Total Robot Build Rating . | . . . . Part Schematics Acquired . | . . . . Parts Built . | . . . . Authchips . | . . . . Time . | . . . . Total Part Build Rating . | . . . . Part Studies Acquired . | . . . . Parts Repaired 2 | . 2 . . Time 58 | . 58 . . Parts Recycled . | . . . . Recycled Matter . | . . . . Retrieved Matter . | . . . . Retrieved Components . | . . . . Parts Scanalyzed . | . . . . Part Schematics Acquired . | . . . . Parts Damaged . | . . . . Bothacking | -11 -10 -10 -10 ------------ Run | Yrd Mat Min Sub Used RIF Installer . | . . . . Robots Hacked . | . . . . Non-combat . | . . . . Combat . | . . . . Robot Hacks Applied . | . . . . Relay Couplers Released . | . . . . Fabnet Peak Effective % . | . . . . Robots Rewired . | . . . . Allies Hacked . | . . . . Hacks Repelled . | . . . . Allies | -11 -10 -10 -10 -------- Run | Yrd Mat Min Sub Total Allies . | . . . . Largest Group . | . . . . Highest-Rated Group . | . . . . Highest-Rated Ally . | . . . . Total Orders . | . . . . Ally Attacks . | . . . . Total Damage . | . . . . Kills . | . . . . Allies Corrupted . | . . . . Allies Melted . | . . . . Intel | -11 -10 -10 -10 ------- Run | Yrd Mat Min Sub Active Infowar (turns) 744 | 3 741 . . Seismic 744 | 3 741 . . Robot Analysis Total 1 | . 1 . . Derelict Logs Recovered 1 | . . 1 . Drone Launches . | . . . . Drone Recoveries . | . . . . Exploration | -11 -10 -10 -10 ------------- Run | Yrd Mat Min Sub Turns Passed 2045 | 92 1689 132 132 Spaces Moved 835 | 64 669 70 32 Core 14 | 14 . . . Treads 541 | 4 435 70 32 Legs 280 | 46 234 . . Wheels . | . . . . Hover . | . . . . Flight . | . . . . Fastest Speed 50 | 50 120 160 160 Average Speed 166 | 107 172 160 160 Slowest Speed 260 | 160 260 160 160 Overloaded Moves . | . . . . Propulsion Burnouts . | . . . . Robots Hopped . | . . . . Potential Cave-ins . | . . . . Cave-ins Triggered . | . . . . Exploration Rate (%) 29 | 4 86 23 3 Regions Visited 3 Branch Regions 2 Pre-discovered Areas 2 | . 1 1 . Known Exits Taken 1 | . 1 . . Unknown Exits Taken 2 | 1 . 1 . Scrap Searched 3 | . . 1 2 Spaces Dug . | . . . . Terrain Destroyed . | . . . . Melee . | . . . . Projectile . | . . . . AOE . | . . . . Terrain Rammed . | . . . . Walls Destroyed . | . . . . Machines Disabled . | . . . . Actions | -11 -10 -10 -10 --------- Run | Yrd Mat Min Sub Total 1319 | 83 1081 90 65 Wait 337 | . 317 20 . Move 832 | 63 668 69 32 Hop . | . . . . Pick Up 27 | 10 14 . 3 Fast Attach 5 | 3 2 . . Attach 7 | 4 3 . . Detach . | . . . . Swap 12 | 2 8 1 1 Drop 7 | . 3 . 4 Fire 90 | 1 64 . 25 Melee . | . . . . Ram . | . . . . Kick . | . . . . Crush 2 | . 2 . . Escape Stasis . | . . . . Rewire . | . . . . Trap . | . . . . Miscellaneous . | . . . . Route ------- -11/Scrapyard -10/Materials (discovered 3 exits: *Mat x2 / *Min) -10/Mines (discovered 3 exits: Mat / Exi / [*Sub]) -10/Subcaves (discovered 2 exits: Mat x2) History --------- Turn | Location | Event 11 | -11/Scrapyard | Discovered new exit (range 16) 93 | -11/Scrapyard | Entered Materials 316 | -10/Materials | Discovered new exit (range 16) 335 | -10/Materials | Build established: Mutant 684 | -10/Materials | Central database locked down 844 | -10/Materials | Discovered new exit (range 15) 1040 | -10/Materials | Discovered new exit (range 10) 1180 | -10/Materials | Repaired Particle Gun 1208 | -10/Materials | Repaired Lgt. Treads 1503 | -10/Materials | Learned 2 Mines zone layouts 1541 | -10/Materials | Learned location of 2 exits from Subcaves 1592 | -10/Materials | Loaded intel: 16 trap records 1608 | -10/Materials | Learned Materials stockpile data 1609 | -10/Materials | Learned 2 Storage zone layouts 1611 | -10/Materials | Learned 2 Mines zone layouts 1621 | -10/Materials | Learned Materials stockpile data 1641 | -10/Materials | Learned Recycling recycling unit intel 1670 | -10/Materials | Identified exit to Mines 1782 | -10/Materials | Entered Mines 1783 | -10/Mines | Identified exit to Exiles 1783 | -10/Mines | Identified exit to Materials 1790 | -10/Mines | Learned location of Zion (-7) 1904 | -10/Mines | Discovered new exit (range 5) 1914 | -10/Mines | Entered Subcaves 1915 | -10/Subcaves | Identified exit to Materials 1968 | -10/Subcaves | Disturbed a concealed Subdweller 1987 | -10/Subcaves | Core integrity fell below 50% 2029 | -10/Subcaves | Core integrity fell below 20% 2046 | -10/Subcaves | Destroyed by BX-LWN(R) with Subdweller Laser Last Messages --------------- 01956_ Dropped Sml. Laser. 01958_ Acquired Barrage Gun. 01962_ Dropped Med. Laser. 01963_ Acquired Battle Rifle. 01967_ Subatomizers dissect the Sub. Power Source. 01968_ BX-LWN(R) angrily emerges from the Twisted Machinery. 01980_ Subatomizers dissect the Sub. Power Source. 01982_ BX-LWN(R) affixes Scrap Shield Fragment to Scrap Shield. 01982_ Dropped Lgt. Ion Engine. 02001_ Subatomizers dissect the Lgt. Ion Engine. 02006_ Imp. Heat Sink destroyed. 02016_ System corrupted: Matter fused (-7). 02023_ Subatomizers dissect the Lgt. Ion Engine, destroying it. 02024_ Sub. Power Source destroyed. 02037_ Subatomizers dissect the Med. Laser. Map ----- +----------------------------------------------------+ | ?????????????????????????????????????????????????? | | ?????????????????????????????????????????????????? | | ?????????????????????????????????????????????????? | | ?????????????????????????????????????????????????? | | ?????????????????????????????????????????????????? | | ?????????????????????????????????????????????????? | | ?????????????????????????????????????????????????? | | ?????????????????????????????????????????????????? | | ?????????????????????????????????????????????????? | | ?????????????????????????????????????????????????? | | ?????????????????????????????????????????????????? | | ?????????????????????????????????????????????????? | | ?????????????????????????????????????????????????? | | ??????????????????????????? ????????????????????? | | ??????????????????????????? ????????????????????? | | ??????????????????????????## ????????????????????? | | ?????????????????????????? #???????????????????? | | ??????????????????????????# ####???????????????? | | ??????????????????????????# #???????????????? | | ??????????????????????##### #???????????????? | | ??????????????????????? ##??????????????? | | ???????????????????????? #??????????????? | | ????????????????????????? #??????????????? | | ???????????????????????#### #??????????????? | | ???????????????????????# %## #???????????????? | | ???????????????????????#%@R##" #????????????????? | | ???????????????????????##[[ ###??????????????? | | ???????????????????????# [#$#< ##?????????????? | | ???????????????????????# ### #?????????????? | | ???????????????????????####?### ##????????????? | | ??????????????????????????????## #????????????? | | ???????????????????????????????## ##????????????? | | ???????????????????????????????# #????????????? | | ???????????????????????????????## ##????????????? | | ??????????????????????????????### ##?????????????? | | ?????????????????????????????## ##??????????????? | | ????????????????????????????## ##??????????????? | | ????????????????????????????# #??????????????? | | ????????????????????????????## # #?????????????? | | ????????????????????????????# ####?????????????? | | ????????????????????????????# #????????????????? | | ????????????????????????????## ###??????????????? | | ?????????????????????????????# #??????????????? | | ????????????????????????????# ?????????? | | ??????????????????????????? #??????? | | ????????????????????????? #?????? | | ????????????????????????# # ## ##?????? | | ????????????????????????##### ##??###??????? | | ???????????????????????????? ##????????????? | | ???????????????????????????? #####?????????????? | +----------------------------------------------------+ Best States ------------- Heat Dissipation 39 Energy Generation 15 Energy Capacity 200 Matter Stores 300 Matter Capacity 300 Sight Range 16 Terrain Scan Density 10 Evasion (%) 55 Recoil Reduction 2 Item Schematics ----------------- None Robot Schematics ------------------ None Fabricated ------------ Nothing Repaired ---------- Particle Gun | 12% | -10/Materials Lgt. Treads | 29% | -10/Materials Studied --------- None Alien Tech Used ----------------- None Achievements -------------- None Challenges ------------ None Game ------ Seed BackupChipMeganuke Manual? 0 Play Time 00:14:23 Cumulative 243.8 hours Start 2026.04.29 @ 14:31:29 End 2026.04.29 @ 14:47:23 Sessions 1 Manual Loads 0 Difficulty Rogue Special Mode None Game No. 335 Rogue 317 Adventurer 18 Explorer 0 Win Type - Total 1 Types 1/0/0/0/0/0/0/0/0/0 Lore% 35 Gallery% 48 Achievement% 35 Wizard Run 0 Options --------- Layout 1 ASCII 0 Keyboard 0 Movement Mouse Keybinds 0 Fullscreen 1 Font 24/Smallcaps Map View 50x40 Zoom Use 0% Tactical HUD 1 Map Filters NONE Filters NONE Steam 1 RUN: 6325c27d-de25-45ac-b293-b7f013215540